bitfinex/quotes_BTCUSD_20240823
["timestamp","ask_amount","ask_price","bid_price","bid_amount"]
[1724422943047,0.1,61724.0,61700.0,0.16724343]
[1724422943226,0.1,61724.0,61710.0,0.162047]
[1724422943455,0.1,61724.0,61702.0,0.00324033]
[1724422943570,0.1,61724.0,61707.0,0.162055]
[1724422943795,0.1,61724.0,61702.0,0.16400298]
[1724422944002,0.1,61724.0,61703.0,0.16724331]
[1724422944242,0.59229154,61732.0,61715.0,0.162034]
[1724422944443,0.59229154,61732.0,61716.0,0.733864]
[1724422944656,0.1812,61744.0,61716.0,0.733864]
[1724422944657,0.49229154,61740.0,61718.0,1.009935]
[1724422944830,0.49229154,61740.0,61718.0,0.685881]
[1724422945046,0.49229154,61740.0,61718.0,0.1998]
[1724422945047,0.323979,61733.0,61718.0,0.1998]
[1724422945304,0.161993,61731.0,61718.0,0.1998]
[1724422945474,0.3765,61749.0,61718.0,0.42602717]
[1724422945676,0.3765,61749.0,61718.0,1.23813815]
[1724422945897,0.323907,61746.0,61718.0,1.070895]
[1724422946100,0.16196,61744.0,61718.0,1.070895]
[1724422946277,0.323907,61746.0,61718.0,1.070895]
[1724422946478,0.161952,61747.0,61718.0,1.070895]
[1724422946689,0.3765,61749.0,61718.0,0.746841]
[1724422946690,0.162173,61739.0,61718.0,0.746841]
[1724422946863,0.49229154,61738.0,61718.0,0.746841]
[1724422947065,0.0002,61739.0,61718.0,0.746841]
[1724422947270,0.0002,61739.0,61718.0,1.23489798]
[1724422948088,0.0002,61739.0,61730.0,0.161994]
[1724422948303,0.16400298,61738.0,61718.0,0.1998]
[1724422948508,0.16400298,61737.0,61719.0,0.00324016]
[1724422948692,0.16400298,61737.0,61720.0,0.00323978]
[1724422948872,0.0002,61739.0,61720.0,0.16724276]
[1724422949073,0.0002,61739.0,61728.0,0.323996]
[1724422949325,0.0002,61739.0,61726.0,0.324012]
[1724422949516,0.0002,61739.0,61731.0,0.323986]
[1724422949720,0.0002,61739.0,61730.0,0.3824]
[1724422950033,0.0002,61739.0,61735.0,0.161981]
[1724422950208,0.0002,61739.0,61736.0,0.0485958]
[1724422950618,0.0002,61739.0,61738.0,0.161974]
[1724422950824,0.0002,61739.0,61737.0,0.00323923]
[1724422951025,0.0002,61739.0,61737.0,0.00323909]
[1724422951226,0.0002,61739.0,61738.0,0.48916196]
[1724422951597,0.0002,61739.0,61738.0,1.07762266]
[1724422951766,0.0002,61739.0,61738.0,0.4264857]
[1724422951995,0.0002,61739.0,61738.0,1.0743837]
[1724422952728,0.0002,61739.0,61738.0,0.345174]
[1724422952973,0.0002,61739.0,61738.0,1.317021]
[1724422953185,0.0002,61739.0,61738.0,0.993072]
[1724422953869,0.0002,61739.0,61738.0,1.317021]
[1724422954082,0.0002,61739.0,61738.0,1.349531]
[1724422954260,0.0002,61739.0,61738.0,2.35393608]
[1724422954454,0.0002,61739.0,61738.0,2.02998708]
[1724422954799,0.0002,61739.0,61738.0,0.64992598]
[1724422954944,0.0002,61739.0,61738.0,1.02938498]
[1724422955123,0.0002,61739.0,61738.0,1.78022148]
[1724422955329,0.002,61772.0,61749.0,0.03251]
[1724422955606,0.002,61772.0,61750.0,0.00323774]
[1724422955735,0.002,61765.0,61749.0,0.03251]
[1724422955942,0.001,61766.0,61750.0,0.00323809]
[1724422956283,0.001,61766.0,61738.0,0.1259385]
[1724422956284,0.49229154,61773.0,61758.0,0.80961]
[1724422956496,0.49229154,61773.0,61758.0,1.08708398]
[1724422956638,0.386,61784.0,61758.0,0.27747398]
[1724422956639,0.003,61778.0,61758.0,0.27747398]
[1724422956855,0.002,61782.0,61758.0,0.88947718]
[1724422957181,0.002,61786.0,61758.0,0.88947718]
[1724422957182,0.002,61785.0,61758.0,1.21332118]
[1724422957684,0.003,61787.0,61772.0,0.03251]
[1724422957950,0.49229154,61774.0,61773.0,0.060251]
[1724422958134,0.003,61789.0,61772.0,0.03251]
[1724422958351,0.003,61789.0,61772.0,0.03574682]
[1724422958352,0.001,61785.0,61772.0,0.03574682]
[1724422958543,0.002,61796.0,61773.0,0.16400298]
[1724422958741,0.003,61789.0,61773.0,0.16400298]
[1724422959059,0.002,61790.0,61774.0,0.00323649]
[1724422959342,0.16400298,61778.0,61772.0,0.014]
[1724422959496,0.001,61777.0,61764.0,0.1846]
[1724422959701,0.16400298,61778.0,61764.0,0.1846]
[1724422959905,0.003,61777.0,61773.0,0.014]
[1724422960106,0.002,61777.0,61764.0,0.1846]
[1724422960449,0.001,61769.0,61763.0,0.3963]
[1724422960635,0.001,61773.0,61759.0,0.3914]
[1724422960990,0.0002,61779.0,61764.0,0.004]
[1724422961188,0.16400298,61778.0,61765.0,0.00323724]
[1724422961399,0.001,61767.0,61759.0,0.3914]
[1724422961601,0.16400298,61778.0,61759.0,0.3914]
[1724422961602,0.003,61774.0,61759.0,0.3914]
[1724422961778,0.001,61762.0,61759.0,0.3914]
[1724422962056,0.16400298,61773.0,61760.0,0.00323773]
[1724422962253,0.16400298,61773.0,61759.0,0.3914]
[1724422962453,0.16400298,61773.0,61760.0,0.00323761]
[1724422962655,0.001,61769.0,61759.0,0.4024]
[1724422962773,0.003,61768.0,61763.0,0.012]
[1724422963192,0.001,61767.0,61759.0,0.4054]
[1724422963431,0.001,61767.0,61757.0,0.197]
[1724422963432,0.16500298,61766.0,61757.0,0.197]
[1724422963632,0.16500298,61766.0,61733.0,0.98039295]
[1724422963633,0.001,61761.0,61760.0,0.013]
[1724422963848,0.16700298,61761.0,61760.0,0.013]
[1724422964047,0.16700298,61761.0,61760.0,0.005]
[1724422964048,0.26400298,61761.0,61760.0,0.005]
[1724422964287,0.16900298,61761.0,61760.0,0.005]
[1724422964490,0.20209388,61761.0,61760.0,0.005]
[1724422964640,0.55010298,61761.0,61760.0,0.005]
[1724422964870,1.03584498,61761.0,61760.0,0.005]
[1724422965230,1.03584498,61761.0,61737.0,0.49229154]
[1724422965231,0.001,61739.0,61737.0,0.49229154]
[1724422965397,0.001,61732.0,61728.0,0.1887]
[1724422965639,0.003,61745.0,61729.0,0.495531]
[1724422965765,0.002,61747.0,61730.0,0.16400298]
[1724422966115,0.001,61755.0,61731.0,0.39933864]
[1724422966414,0.003,61753.0,61733.0,0.161987]
[1724422966617,0.003,61753.0,61726.0,0.324011]
[1724422966618,0.003,61744.0,61721.0,0.1928]
[1724422966819,0.003,61741.0,61722.0,0.22614398]
[1724422967024,0.003,61741.0,61722.0,0.062141]
[1724422967025,0.001,61738.0,61722.0,0.062141]
[1724422967223,0.001,61735.0,61722.0,0.062141]
[1724422967443,0.003,61735.0,61728.0,0.004]
[1724422967643,0.003,61746.0,61734.0,0.161983]
[1724422967870,0.001,61753.0,61736.0,0.3872]
[1724422968057,0.001,61753.0,61752.0,0.485814]
[1724422968467,0.001,61753.0,61752.0,0.877014]
[1724422968778,0.001,61753.0,61752.0,1.36489298]
[1724422968989,0.001,61753.0,61752.0,1.71470298]
[1724422969193,0.002,61785.0,61770.0,0.3875]
[1724422969416,0.002,61785.0,61770.0,0.549388]
[1724422969620,0.49229154,61778.0,61771.0,0.16400298]
[1724422969870,0.323623,61801.0,61771.0,0.16400298]
[1724422969871,0.49229154,61796.0,61779.0,0.03251]
[1724422970075,0.001,61795.0,61779.0,0.19651298]
[1724422970280,0.0032,61799.0,61780.0,0.0553976]
[1724422970480,0.001,61795.0,61780.0,0.2172606]
[1724422970658,0.16720298,61799.0,61780.0,0.0553976]
[1724422970819,0.001,61794.0,61780.0,0.0196513]
[1724422971031,0.16700298,61793.0,61774.0,0.03251]
[1724422971260,0.16900298,61793.0,61773.0,0.03251]
[1724422971491,0.0002,61799.0,61780.0,0.74320298]
[1724422971695,0.0002,61799.0,61783.0,0.03251]
[1724422971890,0.0002,61799.0,61785.0,0.03251]
[1724422972113,0.0002,61799.0,61784.0,0.09113058]
[1724422972114,0.0002,61799.0,61784.0,0.08789488]
[1724422972312,0.0002,61799.0,61785.0,0.00323591]
[1724422972514,0.0002,61799.0,61784.0,0.08789488]
[1724422972713,0.0012,61799.0,61785.0,0.16185]
[1724422972932,0.0002,61799.0,61786.0,0.00323591]
[1724422973178,0.0002,61799.0,61785.0,0.005]
[1724422973325,0.0002,61799.0,61780.0,0.61171]
[1724422973632,0.0002,61799.0,61781.0,0.65953052]
[1724422973846,0.0002,61799.0,61782.0,0.00323577]
[1724422974109,0.16420298,61799.0,61782.0,0.00323577]
[1724422974273,0.16420298,61799.0,61780.0,0.61171]
[1724422974274,0.002,61795.0,61780.0,0.22911]
[1724422974476,0.003,61790.0,61773.0,0.4013]
[1724422974821,0.003,61795.0,61778.0,0.49229154]
[1724422975029,0.003,61795.0,61774.0,0.1672396]
[1724422975030,0.003,61802.0,61779.0,0.26570238]
[1724422975202,0.003,61802.0,61773.0,0.4013]
[1724422975203,0.16400298,61794.0,61773.0,0.4013]
[1724422975428,0.001,61792.0,61776.0,0.161875]
[1724422975631,0.16400298,61791.0,61774.0,0.03251]
[1724422975841,0.001,61789.0,61774.0,0.03251]
[1724422976016,0.003,61788.0,61774.0,0.03251]
[1724422976224,0.4178,61788.0,61774.0,0.03251]
[1724422976631,0.4178,61788.0,61782.0,0.002]
[1724422976963,0.001,61783.0,61782.0,0.002]
[1724422977169,0.002,61794.0,61776.0,0.3981]
[1724422977379,0.001,61788.0,61783.0,0.161855]
[1724422977579,0.002,61788.0,61784.0,0.00323633]
[1724422977911,0.001,61788.0,61784.0,0.00323633]
[1724422978114,0.001,61788.0,61785.0,0.323702]
[1724422978316,0.001,61788.0,61787.0,0.485538]
[1724422978733,0.001,61788.0,61787.0,0.97323298]
[1724422979080,0.001,61788.0,61787.0,0.64954098]
[1724422979216,0.001,61788.0,61787.0,0.67254098]
[1724422979422,0.001,61788.0,61787.0,1.08526667]
[1724422979869,0.001,61788.0,61786.0,0.1851]
[1724422980183,0.001,61788.0,61787.0,1.36603298]
[1724422980411,0.001,61788.0,61787.0,1.38903298]
[1724422980630,0.001,61788.0,61787.0,1.40103298]
[1724422980827,0.00024,61799.0,61787.0,0.3928]
[1724422981030,0.001,61788.0,61787.0,0.166846]
[1724422981306,0.001,61788.0,61787.0,0.42424485]
[1724422981505,0.00024,61799.0,61793.0,0.161828]
[1724422981708,0.00024,61799.0,61794.0,0.16723863]
[1724422981917,0.00024,61799.0,61798.0,0.544617]
[1724422982130,0.00024,61799.0,61798.0,1.10574054]
[1724422982334,0.00024,61799.0,61798.0,1.42937554]
[1724422982546,0.00024,61799.0,61798.0,1.45237554]
[1724422982969,0.002,61840.0,61811.0,0.5919]
[1724422983239,0.49229154,61835.0,61816.0,0.16400298]
[1724422983444,0.001,61840.0,61817.0,0.023]
[1724422983674,0.002,61843.0,61817.0,0.023]
[1724422983675,0.002,61843.0,61822.0,0.161753]
[1724422983876,0.002,61840.0,61823.0,0.16400298]
[1724422984079,0.002,61845.0,61823.0,0.16400298]
[1724422984296,0.002,61836.0,61818.0,0.00323405]
[1724422984509,0.003,61835.0,61819.0,0.16723721]
[1724422984686,0.003,61835.0,61820.0,0.0032339]
[1724422984860,0.0002,61839.0,61823.0,0.16400298]
[1724422985069,0.0002,61839.0,61824.0,0.24928019]
[1724422985275,0.00955846,61859.0,61839.0,0.3774]
[1724422985600,0.00022327,61870.0,61869.0,0.675294]
[1724422985818,0.00022327,61870.0,61869.0,0.1904]
[1724422986268,0.00022327,61870.0,61853.0,0.323344]
[1724422986269,0.00022327,61870.0,61856.0,0.4083]
[1724422986471,0.001,61872.0,61856.0,0.4083]
[1724422986674,0.005,61859.0,61845.0,0.4083]
[1724422986979,0.1952,61858.0,61832.0,0.001]
[1724422987091,0.1952,61858.0,61833.0,0.16723606]
[1724422987305,0.001,61848.0,61840.0,0.3823]
[1724422987518,0.007,61839.0,61823.0,0.001]
[1724422987719,0.007,61839.0,61829.0,0.49229154]
[1724422988031,0.001,61834.0,61821.0,0.3875]
[1724422988376,0.323379,61847.0,61810.0,0.4117]
[1724422988377,0.001,61829.0,61810.0,0.4117]
[1724422988557,0.001,61823.0,61810.0,0.57570298]
[1724422988765,0.3948,61831.0,61811.0,0.16723758]
[1724422988959,0.3948,61831.0,61812.0,0.10722291]
[1724422989133,0.02536555,61837.0,61817.0,0.16400298]
[1724422989332,0.02536555,61837.0,61813.0,0.1928]
[1724422989333,0.3938,61854.0,61830.0,0.001]
[1724422989560,0.02536543,61844.0,61832.0,0.1928]
[1724422989782,0.02536543,61844.0,61833.0,0.16400298]
[1724422989991,0.02536543,61844.0,61832.0,0.1928]
[1724422990157,0.001,61842.0,61822.0,0.408]
[1724422990358,0.161708,61840.0,61823.0,0.65629452]
[1724422990564,0.02536543,61844.0,61824.0,0.49229154]
[1724422990760,0.001,61836.0,61824.0,0.16400298]
[1724422990966,0.007,61831.0,61824.0,0.16400298]
[1724422991377,0.18707281,61840.0,61820.0,0.187]
[1724422991378,0.02536581,61840.0,61820.0,0.187]
[1724422991572,0.18707381,61840.0,61821.0,0.16400298]
[1724422991944,0.18707381,61840.0,61824.0,0.001]
[1724422991945,0.001,61836.0,61824.0,0.001]
[1724422992122,0.413,61835.0,61824.0,0.001]
[1724422992363,0.413,61835.0,61816.0,0.5073]
[1724422992565,0.413,61835.0,61824.0,0.006]
[1724422992566,0.1927,61831.0,61824.0,0.006]
[1724422992770,0.1927,61831.0,61806.0,0.90509154]
[1724422992969,0.1927,61831.0,61807.0,0.16400298]
[1724422992970,0.16400298,61830.0,61807.0,0.16400298]
[1724422993101,0.02536958,61831.0,61807.0,0.16723763]
[1724422993302,0.16400298,61830.0,61807.0,0.16400298]
[1724422993508,0.02536958,61831.0,61812.0,0.323556]
[1724422993705,0.02536958,61831.0,61800.0,0.323623]
[1724422993706,0.001,61824.0,61800.0,0.323623]
[1724422994057,0.001,61824.0,61802.0,0.323613]
[1724422994186,0.001,61824.0,61807.0,0.161792]
[1724422994391,0.001,61824.0,61799.0,0.03501815]
[1724422994392,0.02537281,61819.0,61808.0,0.16400298]
[1724422994704,0.4041,61818.0,61801.0,0.161809]
[1724422994910,0.4041,61818.0,61802.0,0.16400298]
[1724422995091,0.02537281,61819.0,61803.0,0.00323511]
[1724422995313,0.001,61816.0,61804.0,0.16400298]
[1724422995513,0.02537281,61819.0,61804.0,0.16400298]
[1724422995714,0.02537281,61819.0,61800.0,0.03251]
[1724422995715,0.001,61814.0,61800.0,0.03251]
[1724422995915,0.001,61809.0,61808.0,0.001]
[1724422996161,0.64936798,61809.0,61808.0,0.00016778]
[1724422996481,1.07934586,61809.0,61808.0,0.00016778]
[1724422996688,0.02537788,61809.0,61808.0,0.00016778]
[1724422997227,0.02737788,61809.0,61808.0,0.00616778]
[1724422997538,0.19138086,61809.0,61808.0,0.00616778]
[1724422997753,0.02637788,61809.0,61808.0,0.00616778]
[1724422998154,0.02637788,61809.0,61808.0,0.006]
[1724422998360,0.02737788,61809.0,61808.0,0.006]
[1724422998596,0.02637788,61809.0,61808.0,0.006]
[1724422999169,0.02637788,61809.0,61791.0,0.1]
[1724422999170,0.02537788,61809.0,61791.0,0.1]
[1724422999321,0.02537788,61809.0,61808.0,0.006]
[1724422999484,0.02537788,61809.0,61808.0,0.003]
[1724422999882,0.02537788,61809.0,61808.0,0.16700298]
[1724423000098,0.16176,61820.0,61795.0,0.161824]
[1724423000299,0.02537371,61809.0,61796.0,0.16400298]
[1724423000500,0.001,61808.0,61785.0,0.3957]
[1724423000802,0.3786,61807.0,61788.0,0.65629452]
[1724423001050,0.3786,61807.0,61789.0,0.0032358]
[1724423001261,0.3786,61807.0,61789.0,0.16723878]
[1724423001461,0.3786,61807.0,61791.0,0.003]
[1724423001780,0.001,61799.0,61791.0,0.003]
[1724423002002,0.16400298,61806.0,61784.0,0.03251]
[1724423002003,0.1964,61800.0,61784.0,0.03251]
[1724423002377,0.1964,61800.0,61789.0,0.005]
[1724423002542,0.02538196,61797.0,61789.0,0.005]
[1724423002742,0.001,61792.0,61776.0,0.58036397]
[1724423002941,0.3883,61792.0,61791.0,0.028]
[1724423003152,0.02538196,61797.0,61791.0,0.014]
[1724423004124,0.02538196,61797.0,61791.0,0.028]
[1724423004326,0.02538196,61797.0,61792.0,0.00323619]
[1724423004727,0.02538196,61797.0,61793.0,0.01790722]
[1724423004905,0.02538196,61797.0,61794.0,0.00323584]
[1724423005265,0.02538196,61797.0,61795.0,0.00323583]
[1724423005471,0.02538196,61797.0,61792.0,0.00323579]
[1724423005677,0.02638196,61797.0,61793.0,0.16400298]
[1724423005895,0.001,61818.0,61794.0,0.00323559]
[1724423005896,0.4133,61816.0,61794.0,0.00323559]
[1724423006137,0.001,61822.0,61796.0,0.4166]
[1724423006302,0.02537923,61816.0,61800.0,0.002]
[1724423006507,0.4065,61832.0,61813.0,0.323555]
[1724423006672,0.02537332,61829.0,61821.0,0.161756]
[1724423006872,0.02537332,61829.0,61814.0,0.77403742]
[1724423006873,0.02537332,61829.0,61822.0,0.00323442]
[1724423007245,0.02537332,61829.0,61814.0,0.77080298]
[1724423007246,0.006,61816.0,61814.0,0.77080298]
[1724423007472,0.006,61816.0,61810.0,0.161785]
[1724423007680,0.006,61816.0,61806.0,0.5661]
[1724423007856,0.006,61816.0,61807.0,0.16400298]
[1724423008068,0.02537184,61815.0,61800.0,0.49229154]
[1724423008269,0.02537184,61815.0,61801.0,0.41869155]
[1724423008413,0.02537184,61815.0,61801.0,0.41545643]
[1724423008649,0.02537184,61815.0,61801.0,0.31545643]
[1724423008853,0.02537184,61815.0,61813.0,0.001]
[1724423009037,0.02537184,61815.0,61802.0,0.161806]
[1724423009233,0.02537184,61815.0,61805.0,0.161798]
[1724423009442,0.02537184,61815.0,61806.0,0.16400298]
[1724423009636,0.02537184,61815.0,61814.0,0.161775]
[1724423009887,0.4065,61832.0,61814.0,0.16400298]
[1724423010092,0.02537216,61817.0,61813.0,0.003]
[1724423010256,0.02537216,61817.0,61805.0,0.323593]
[1724423010473,0.02537216,61817.0,61816.0,0.48531]
[1724423010639,0.48708821,61856.0,61816.0,0.48531]
[1724423010640,0.001,61839.0,61817.0,0.3788]
[1724423010843,0.001,61839.0,61819.0,0.1915]
[1724423011063,0.001,61839.0,61820.0,0.16723702]
[1724423011260,0.001,61839.0,61824.0,0.161749]
[1724423011461,0.001,61840.0,61825.0,0.00323403]
[1724423011706,0.001,61840.0,61827.0,0.16174]
[1724423011903,0.4046,61841.0,61828.0,0.16723689]
[1724423012101,0.005,61832.0,61828.0,0.16723689]
[1724423012329,0.005,61832.0,61830.0,0.161732]
[1724423012537,0.1965,61850.0,61828.0,0.16723689]
[1724423012538,0.001,61854.0,61831.0,0.55594325]
[1724423012758,0.3756,61857.0,61843.0,0.161699]
[1724423012957,0.3756,61857.0,61843.0,0.64910098]
[1724423013306,0.3756,61857.0,61843.0,0.48740198]
[1724423013607,0.4142,61864.0,61843.0,0.97249998]
[1724423013809,0.001,61863.0,61843.0,1.10739008]
[1724423014006,0.4142,61864.0,61843.0,0.78399108]
[1724423014560,0.001,61863.0,61843.0,1.10739008]
[1724423014707,0.001,61863.0,61843.0,0.78399108]
[1724423015129,0.4142,61864.0,61843.0,0.78399108]
[1724423015130,0.4142,61864.0,61843.0,1.55720008]
[1724423015464,0.0222724,61873.0,61859.0,0.161657]
[1724423015631,0.0222724,61873.0,61860.0,0.18016868]
[1724423016015,0.0222724,61873.0,61864.0,0.323289]
[1724423016236,0.0222724,61873.0,61865.0,0.16400298]
[1724423016434,0.0222724,61873.0,61867.0,0.323271]
[1724423016610,0.0222724,61873.0,61868.0,0.16400298]
[1724423016812,0.09,61871.0,61869.0,0.0164003]
[1724423017049,0.09,61871.0,61870.0,0.32563198]
[1724423017413,0.09,61871.0,61870.0,0.16400298]
[1724423017614,0.09,61871.0,61870.0,0.32563198]
[1724423017901,0.09,61871.0,61870.0,0.97214798]
[1724423018143,0.09,61871.0,61870.0,0.26305781]
[1724423018458,0.09,61871.0,61870.0,0.32563198]
[1724423018659,0.09,61871.0,61870.0,0.16400298]
[1724423018838,0.09,61871.0,61870.0,0.32563198]
[1724423019041,0.0222724,61873.0,61872.0,0.161623]
[1724423019241,0.0222724,61873.0,61872.0,0.67187298]
[1724423019539,0.0002,61879.0,61878.0,0.161608]
[1724423019744,0.0002,61879.0,61878.0,0.32884208]
[1724423020078,0.0002,61879.0,61878.0,1.36037408]
[1724423020284,0.0002,61879.0,61878.0,1.57837408]
[1724423020483,0.0002,61879.0,61878.0,2.03310008]
[1724423020690,0.0002,61879.0,61878.0,2.20607886]
[1724423021012,0.0002,61879.0,61878.0,2.19384776]
[1724423021215,0.0002,61879.0,61878.0,2.53106376]
[1724423021414,0.0002,61879.0,61878.0,2.53206376]
[1724423021623,0.0002,61899.0,61898.0,0.484668]
[1724423021825,0.0002,61899.0,61898.0,1.17685978]
[1724423022247,0.0002,61899.0,61898.0,0.85274778]
[1724423022457,0.0002,61899.0,61898.0,1.14434978]
[1724423022656,0.0002,61899.0,61898.0,1.17785978]
[1724423022883,0.0002,61899.0,61898.0,1.58875978]
[1724423023081,0.0002,61919.0,61908.0,0.001]
[1724423023323,0.0002,61919.0,61909.0,0.16400298]
[1724423023639,0.0002,61919.0,61898.0,0.7762668]
[1724423023842,0.323008,61918.0,61899.0,0.16400298]
[1724423023977,0.0002,61919.0,61899.0,0.16400298]
[1724423023978,0.001,61913.0,61899.0,0.16400298]
[1724423024176,0.5741,61917.0,61899.0,0.16400298]
[1724423024177,0.5741,61917.0,61908.0,0.004]
[1724423024426,0.162527,61909.0,61908.0,0.004]
[1724423024654,0.5741,61917.0,61898.0,0.00323014]
[1724423024783,0.5741,61917.0,61908.0,0.004]
[1724423025361,0.001,61909.0,61893.0,0.03251]
[1724423025517,0.001,61907.0,61894.0,0.16400298]
[1724423025723,0.3829,61906.0,61883.0,0.49229154]
[1724423025920,0.3839,61906.0,61884.0,0.32882561]
[1724423026123,0.3829,61906.0,61884.0,0.16723361]
[1724423026324,0.16400298,61905.0,61877.0,0.002]
[1724423026579,0.001,61889.0,61878.0,0.16400298]
[1724423026727,0.001,61891.0,61878.0,0.16400298]
[1724423026935,0.3986,61899.0,61879.0,0.0032312]
[1724423027142,0.02534317,61892.0,61885.0,0.3787]
[1724423027363,0.4016,61909.0,61886.0,0.16400298]
[1724423027563,0.001,61902.0,61884.0,0.002]
[1724423027738,0.001,61902.0,61871.0,0.48708821]
[1724423027739,0.02533974,61908.0,61885.0,0.16400298]
[1724423028091,0.001,61903.0,61885.0,0.16400298]
[1724423028238,0.001,61897.0,61885.0,0.16400298]
[1724423028444,0.001,61904.0,61885.0,0.16400298]
[1724423028630,0.4016,61909.0,61890.0,0.32315]
[1724423028844,0.001,61904.0,61893.0,0.161568]
[1724423029046,0.001,61902.0,61893.0,0.16400298]
[1724423029266,0.001,61900.0,61886.0,0.0167003]
[1724423029470,0.3772,61895.0,61885.0,0.001]
[1724423029670,0.3762,61895.0,61885.0,0.001]
[1724423029874,0.001,61889.0,61885.0,0.001]
[1724423030098,0.1997,61890.0,61885.0,0.001]
[1724423030271,0.5638,61895.0,61885.0,0.001]
[1724423030474,0.001,61886.0,61885.0,0.001]
[1724423030679,0.02534403,61893.0,61885.0,0.001]
[1724423030873,0.02534403,61893.0,61886.0,0.1672338]
[1724423031084,0.3853,61902.0,61886.0,0.1672338]
[1724423031289,0.008,61908.0,61888.0,0.16400298]
[1724423031489,0.001,61895.0,61894.0,0.484699]
[1724423031694,0.001,61895.0,61894.0,0.64870198]
[1724423031893,0.001,61895.0,61894.0,0.74870198]
[1724423032464,0.3781,61916.0,61894.0,0.68700298]
[1724423032658,0.3781,61916.0,61895.0,0.16400298]
[1724423032776,0.3781,61916.0,61896.0,0.0687003]
[1724423032777,0.001,61913.0,61896.0,0.0687003]
[1724423032977,0.3781,61916.0,61897.0,0.16400298]
[1724423032978,0.001,61909.0,61897.0,0.16400298]
[1724423033239,0.005,61908.0,61898.0,0.10323017]
[1724423033465,0.005,61908.0,61899.0,0.16400298]
[1724423033730,0.005,61908.0,61900.0,0.1]
[1724423033944,0.005,61908.0,61886.0,0.03251]
[1724423034093,0.005,61908.0,61890.0,0.1672332]
[1724423034474,0.02533462,61913.0,61890.0,0.1672332]
[1724423034475,0.02533462,61913.0,61891.0,0.1]
[1724423034686,0.001,61910.0,61895.0,0.161562]
[1724423034882,0.001,61910.0,61896.0,0.1]
[1724423035456,0.02893325,61913.0,61897.0,0.48711798]
[1724423035646,0.02893325,61913.0,61900.0,0.16155]
[1724423035948,0.001,61912.0,61901.0,0.323095]
[1724423036149,0.001,61906.0,61896.0,0.1]
[1724423036380,0.001,61906.0,61886.0,0.49229154]
[1724423036381,0.3793,61899.0,61886.0,0.49229154]
[1724423036580,0.3793,61899.0,61887.0,0.16400298]
[1724423036701,0.3793,61899.0,61891.0,0.161572]
[1724423036908,0.3793,61899.0,61888.0,0.161581]
[1724423037106,0.3793,61899.0,61893.0,0.161566]
[1724423037311,0.001,61906.0,61897.0,0.161556]
[1724423037509,0.001,61906.0,61898.0,0.161555]
[1724423037865,0.3873,61909.0,61898.0,0.0325558]
[1724423038071,0.001,61906.0,61898.0,0.0325558]
[1724423038299,0.001,61901.0,61894.0,0.16400298]
[1724423038511,0.3873,61909.0,61894.0,0.16400298]
[1724423038512,0.001,61904.0,61894.0,0.16400298]
[1724423038693,0.3873,61909.0,61894.0,0.16400298]
[1724423038909,0.3873,61909.0,61898.0,0.002]
[1724423039057,0.001,61917.0,61899.0,0.16400298]
[1724423039261,0.0002,61919.0,61912.0,0.161517]
[1724423039483,0.0002,61919.0,61913.0,0.00322977]
[1724423039832,0.0002,61919.0,61905.0,0.323073]
[1724423039833,0.0002,61919.0,61909.0,0.1]
[1724423040060,0.001,61918.0,61909.0,0.1]
[1724423040236,0.0002,61919.0,61910.0,0.0261532]
[1724423040437,0.0002,61919.0,61894.0,0.005]
[1724423040438,0.161509,61916.0,61894.0,0.005]
[1724423040595,0.02,61913.0,61894.0,0.005]
[1724423040795,0.001,61908.0,61894.0,0.005]
[1724423041023,0.02,61913.0,61896.0,0.323121]
[1724423041222,0.02,61913.0,61909.0,0.001]
[1724423041429,0.001,61911.0,61909.0,0.001]
[1724423041603,0.001,61910.0,61909.0,0.001]
[1724423042165,0.001,61916.0,61909.0,0.001]
[1724423042366,0.001,61906.0,61897.0,0.1]
[1724423042663,0.004,61913.0,61898.0,0.00323041]
[1724423042828,0.16400298,61915.0,61900.0,0.16155]
[1724423043034,0.3853,61916.0,61900.0,0.16155]
[1724423043035,0.002,61910.0,61903.0,0.161541]
[1724423043197,0.002,61910.0,61904.0,0.1]
[1724423043399,0.002,61910.0,61909.0,0.001]
[1724423043888,0.002,61910.0,61901.0,0.423095]
[1724423044093,0.002,61910.0,61909.0,0.161527]
[1724423044283,0.002,61910.0,61904.0,0.49229154]
[1724423044284,0.002,61910.0,61907.0,0.161531]
[1724423044463,0.0002,61919.0,61907.0,0.00323009]
[1724423044660,0.0002,61919.0,61907.0,0.1]
[1724423044869,0.004,61913.0,61912.0,0.161519]
[1724423045211,0.004,61913.0,61912.0,0.96637658]
[1724423045490,0.0002,61919.0,61918.0,0.807517]
[1724423045716,0.0042,61919.0,61918.0,0.807517]
[1724423046175,0.0002,61919.0,61918.0,0.807517]
[1724423046422,0.0002,61919.0,61918.0,0.161503]
[1724423046912,0.0002,61919.0,61912.0,0.27800298]
[1724423046913,0.0002,61919.0,61912.0,0.107]
[1724423047131,0.55730298,61918.0,61912.0,0.007]
[1724423047690,0.199,61913.0,61912.0,0.007]
[1724423047891,0.36300298,61913.0,61912.0,0.007]
[1724423048240,0.93901898,61913.0,61912.0,0.007]
[1724423048488,1.60808498,61913.0,61912.0,0.007]
[1724423048689,0.001,61907.0,61884.0,0.508581]
[1724423048923,0.001,61902.0,61884.0,0.1854]
[1724423049047,0.16400298,61901.0,61884.0,0.1854]
[1724423049472,0.16400298,61901.0,61880.0,0.323205]
[1724423049473,0.3861,61896.0,61880.0,0.323205]
[1724423049676,0.55010298,61896.0,61880.0,0.49552283]